bitfinex/quotes_SOLUSD_20240727
["timestamp","ask_amount","ask_price","bid_price","bid_amount"]
[1722090827639,5.3794,185.9,185.84,5.3807]
[1722090827841,5.3794,185.9,185.8,0.34]
[1722090828445,5.3794,185.9,185.84,5.3807]
[1722090828651,5.379,185.91,185.85,5.3806]
[1722090828955,25.3793,185.9,185.84,5.3809]
[1722090829266,5.3795,185.89,185.84,5.3809]
[1722090830473,25.3793,185.9,185.84,5.3809]
[1722090831541,20.0,185.9,185.85,5.3806]
[1722090831963,20.5729,185.93,185.8,1.41606328]
[1722090832160,20.0,185.92,185.8,21.41606328]
[1722090832443,20.0,185.92,185.81,45.0]
[1722090832751,5.3791,185.91,185.85,5.3804]
[1722090833641,5.3791,185.91,185.82,20.0]
[1722090833642,20.0,185.92,185.87,5.3798]
[1722090833853,25.3786,185.92,185.87,5.3798]
[1722090834066,26.45213351,185.92,185.86,5.3803]
[1722090834366,25.3786,185.92,185.87,5.38]
[1722090835267,25.3786,185.92,185.86,5.3803]
[1722090835652,15.1944,185.93,185.91,5.3788]
[1722090835969,15.1944,185.93,185.9,5.3792]
[1722090836153,5.3772,185.97,185.92,5.3785]
[1722090836357,15.3723,185.98,185.92,5.3785]
[1722090836358,20.7494,185.98,185.92,5.3785]
[1722090836679,15.3723,185.98,185.91,5.3788]
[1722090837181,15.3723,185.98,185.83,1.07592048]
[1722090837373,15.3723,185.98,185.84,1.41559635]
[1722090837671,15.3723,185.98,185.93,5.3783]
[1722090837969,20.7493,185.98,185.92,5.3786]
[1722090838169,5.3778,185.95,185.89,5.3794]
[1722090838377,16.44583351,185.98,185.84,1.41564401]
[1722090838378,5.3775,185.96,185.9,45.0]
[1722090838582,5.3772,185.97,185.91,5.3789]
[1722090839952,15.3723,185.98,185.93,5.3781]
[1722090840152,15.3723,185.98,185.92,5.3786]
[1722090840360,20.7492,185.98,185.92,5.3786]
[1722090840878,15.3723,185.98,185.93,45.0]
[1722090841079,16.44583351,185.98,185.91,5.3787]
[1722090841460,15.3723,185.98,185.92,5.3786]
[1722090841764,16.44583351,185.98,185.9,45.0]
[1722090842070,15.3723,185.98,185.9,45.0]
[1722090842269,16.44583351,185.98,185.9,45.0]
[1722090842452,5.3778,185.95,185.9,45.0]
[1722090842654,15.3723,185.98,185.83,2.35156898]
[1722090842655,1.07353351,185.94,185.83,2.35156898]
[1722090842960,1.07353351,185.94,185.78,6.4045]
[1722090843281,5.3787,185.92,185.86,5.3803]
[1722090843451,20.0,185.97,185.91,5.3787]
[1722090843651,20.0,185.97,185.93,5.3783]
[1722090843878,15.3723,185.98,185.88,5.3796]
[1722090843879,5.3779,185.95,185.88,5.3796]
[1722090844062,5.3779,185.95,185.89,5.3795]
[1722090844063,5.3777,185.95,185.89,5.3795]
[1722090844460,1.07353351,185.97,185.91,5.3789]
[1722090844461,5.3772,185.97,185.91,5.3789]
[1722090844682,15.3723,185.98,185.93,5.3783]
[1722090846170,20.7492,185.98,185.92,5.3786]
[1722090846360,5.3778,185.95,185.88,5.3795]
[1722090846563,1.07353351,185.94,185.81,1.07585349]
[1722090846796,1.07353351,185.94,185.81,21.07585349]
[1722090846979,15.3723,185.98,185.91,5.3786]
[1722090847180,20.0,185.97,185.92,5.3786]
[1722090847368,20.0,185.97,185.93,5.3783]
[1722090847574,20.0,185.97,185.92,5.3786]
[1722090847869,1.07353351,185.96,185.82,1.07562157]
[1722090848183,5.3781,185.94,185.87,5.3798]
[1722090848482,5.3787,185.92,185.85,5.3804]
[1722090848666,6.45223351,185.92,185.86,5.3803]
[1722090848868,1.07353351,185.91,185.86,5.3803]
[1722090849061,5.3787,185.92,185.86,5.3803]
[1722090849893,6.607,185.9,185.84,5.3807]
[1722090850060,16.49293351,185.89,185.74,6.4045]
[1722090850268,15.4194,185.89,185.76,1.07606707]
[1722090850581,15.4194,185.89,185.85,5.3806]
[1722090850879,15.4194,185.89,185.86,5.3803]
[1722090851060,15.4194,185.89,185.84,5.3807]
[1722090851672,15.4194,185.89,185.77,1.07615706]
[1722090851878,15.4194,185.89,185.78,0.34]
[1722090852168,6.607,185.9,185.79,1.07591712]
[1722090852486,6.607,185.9,185.87,5.3798]
[1722090852797,6.607,185.9,185.86,5.3803]
[1722090852972,15.4194,185.93,185.87,50.38]
[1722090853168,15.4194,185.93,185.87,45.0]
[1722090853376,15.4194,185.93,185.9,5.3791]
[1722090853577,6.607,185.94,185.9,5.3791]
[1722090853776,6.607,185.94,185.88,5.3795]
[1722090854086,11.9851,185.94,185.89,45.0]
[1722090854801,6.607,185.94,185.89,5.3795]
[1722090854999,11.985,185.94,185.87,5.3799]
[1722090855174,6.607,185.94,185.87,5.3799]
[1722090855373,5.3786,185.92,185.81,1.07576953]
[1722090855700,1.07353351,185.91,185.8,15.1125]
[1722090855867,1.07353351,185.91,185.83,5.3812]
[1722090856296,5.3795,185.89,185.83,5.3812]
[1722090856679,1.07353351,185.88,185.75,15.1125]
[1722090856876,1.07353351,185.88,185.67,187.25143866]
[1722090856877,5.3809,185.85,185.79,5.3821]
[1722090857583,5.3809,185.85,185.8,5.3821]
[1722090857797,5.3804,185.86,185.8,5.3821]
[1722090857992,5.3804,185.86,185.74,7.48075581]
[1722090857993,5.3801,185.87,185.81,5.3817]
[1722090858180,1.07353351,185.86,185.81,5.3817]
[1722090858497,7.68053351,185.85,185.72,3.41135489]
[1722090858668,5.3815,185.83,185.77,5.3827]
[1722090859083,6.45503351,185.83,185.76,5.3832]
[1722090859301,5.3809,185.84,185.71,16.18899993]
[1722090859793,5.381,185.84,185.78,5.3824]
[1722090860199,15.4194,185.89,185.79,1.07648409]
[1722090860488,15.4194,185.89,185.84,5.3806]
[1722090860890,15.4194,185.89,185.8,0.34]
[1722090861087,15.4194,185.89,185.85,5.3806]
[1722090861487,1.07353351,185.95,185.86,45.0]
[1722090861488,15.4194,185.95,185.86,45.0]
[1722090861793,5.3781,185.94,185.88,5.3798]
[1722090862290,20.7972,185.95,185.88,5.3798]
[1722090862496,20.7972,185.95,185.89,5.3793]
[1722090862987,20.0,185.94,185.86,45.0]
[1722090863167,15.4194,185.95,185.86,45.0]
[1722090863768,15.4194,185.95,185.87,1.07582815]
[1722090863992,15.4194,185.95,185.91,5.3789]
[1722090864181,15.4194,185.95,185.9,5.3791]
[1722090864599,21.87093351,185.95,185.86,45.17]
[1722090864773,15.4194,185.95,185.86,45.0]
[1722090865092,15.4194,185.95,185.87,0.34]
[1722090865403,15.4194,185.95,185.91,5.3789]
[1722090865704,13.4387,186.03,185.93,5.3783]
[1722090865705,21.8364,186.0,185.93,5.3783]
[1722090865992,21.8364,186.0,185.93,6.45382811]
[1722090866175,21.8364,186.0,185.93,5.3783]
[1722090866783,5.3767,185.99,185.93,5.3783]
[1722090867502,16.4598,186.0,185.87,1.41552627]
[1722090867503,16.4598,186.0,185.94,45.0]
[1722090867679,16.4598,186.0,185.95,5.3776]
[1722090868298,6.0811,186.01,185.96,50.3774]
[1722090868501,6.0811,186.01,185.95,5.3777]
[1722090868812,11.4571,186.01,185.96,45.0]
[1722090869495,5.3763,186.0,185.87,0.34]
[1722090869694,6.0811,186.01,185.87,0.34]
[1722090870013,6.0811,186.01,185.95,5.3776]
[1722090870305,6.0811,186.01,185.96,50.3774]
[1722090870612,6.0811,186.01,185.96,45.0]
[1722090871607,1.07353351,186.0,185.87,0.34]
[1722090871790,12.53073351,186.01,185.94,5.3778]
[1722090871991,5.3764,186.0,185.95,45.0]
[1722090872185,5.3764,186.0,185.94,5.3778]
[1722090872496,11.4572,186.01,185.95,50.3776]
[1722090873115,6.0811,186.01,185.96,5.3773]
[1722090873688,11.4571,186.01,185.95,50.3777]
[1722090873887,14.51493351,186.0,185.85,2.38048198]
[1722090874189,20.0,185.99,185.85,1.07576331]
[1722090874388,20.0,185.99,185.86,1.07563755]
[1722090875020,6.0811,186.01,185.86,1.07563755]
[1722090875197,16.4598,186.04,186.02,5.3757]
[1722090875396,16.4598,186.04,185.93,1.07511646]
[1722090875695,16.4598,186.04,185.94,0.34]
[1722090875885,16.4598,186.04,185.95,1.07511578]
[1722090876093,16.4598,186.04,186.01,5.3759]
[1722090876292,16.4598,186.04,185.96,1.41511723]
[1722090876293,5.3756,186.03,185.97,5.3771]
[1722090876525,5.3756,186.03,185.98,45.17]
[1722090876702,16.4598,186.04,185.98,45.17]
[1722090876899,16.4598,186.04,185.99,5.3763]
[1722090877099,16.4598,186.04,186.0,45.0]
[1722090877709,6.0811,186.07,186.0,50.3763]
[1722090878315,11.4555,186.07,186.01,6.45111789]
[1722090878918,11.4555,186.07,186.02,5.3757]
[1722090879127,11.4555,186.07,186.01,6.45091789]
[1722090879418,6.0811,186.07,186.03,5.3753]
[1722090879603,16.4598,186.08,186.04,45.0]
[1722090879805,16.4598,186.08,186.04,50.375]
[1722090880111,16.4598,186.08,186.05,5.3748]
[1722090880413,16.4598,186.08,186.04,45.0]
[1722090880414,5.3734,186.1,186.04,50.3751]
[1722090880996,7.15463351,186.11,186.04,45.0]
[1722090881198,6.0811,186.11,186.04,45.0]
[1722090881409,16.4598,186.16,186.11,5.373]
[1722090881605,16.4598,186.16,186.12,45.0]
[1722090881899,6.0811,186.17,186.14,5.3722]
[1722090882103,21.8304,186.2,186.14,5.3722]
[1722090882298,16.4598,186.2,186.06,1.07435312]
[1722090882516,5.3714,186.18,186.07,0.34]
[1722090882925,5.3714,186.18,186.08,1.07438333]
[1722090883218,5.3708,186.19,186.13,5.3725]
[1722090883410,5.3708,186.19,186.14,46.07432508]
[1722090883604,5.3708,186.19,186.14,45.0]
[1722090884319,5.3712,186.18,186.13,45.0]
[1722090884619,21.8303,186.2,186.14,6.44652614]
[1722090884802,16.4598,186.2,186.15,45.0]
[1722090885999,16.4598,186.2,186.16,1.07429094]
[1722090886209,6.0811,186.22,186.16,6.44569094]
[1722090886416,11.4512,186.22,186.16,6.44569094]
[1722090887013,5.3703,186.21,186.15,50.3719]
[1722090887614,16.6625,186.24,186.15,45.0]
[1722090887807,5.3697,186.23,186.17,5.3712]
[1722090888007,5.3702,186.22,186.18,45.0]
[1722090888224,16.6625,186.24,186.06,1.07401566]
[1722090888225,1.07353351,186.23,186.08,15.5148]
[1722090888404,16.6625,186.24,186.14,5.372]
[1722090888405,5.3705,186.21,186.14,5.372]
[1722090888717,16.6625,186.24,186.13,0.17]
[1722090888718,17.73603351,186.24,186.13,0.17]
[1722090888921,20.0,186.23,186.09,21.41418152]
[1722090889127,20.0,186.23,186.09,1.41418152]
[1722090889333,25.3698,186.23,186.17,5.3711]
[1722090889829,16.6625,186.24,186.18,50.3711]
[1722090890032,16.6625,186.24,186.19,5.3707]
[1722090890327,22.0319,186.24,186.2,45.0]
[1722090890714,16.6625,186.24,186.19,50.3708]
[1722090890907,22.032,186.24,186.19,45.0]
[1722090891510,5.3697,186.23,186.19,45.0]
[1722090891712,16.6625,186.24,186.18,45.0]
[1722090891907,16.6625,186.24,186.1,45.0]
[1722090892103,16.6625,186.24,186.11,1.41408497]
[1722090892824,5.3702,186.22,186.16,5.3715]
[1722090893131,5.3703,186.21,186.17,45.0]
[1722090893310,5.3703,186.21,186.15,0.17]
[1722090893625,5.3706,186.2,186.1,46.07408617]
[1722090893803,5.3706,186.2,186.14,5.3722]
[1722090894009,5.3708,186.19,186.13,5.3725]
[1722090894223,5.3703,186.21,186.15,5.3719]
[1722090894427,20.532,186.24,186.17,5.3711]
[1722090894611,20.532,186.24,186.18,5.3711]
[1722090894810,5.3697,186.23,186.17,5.3714]
[1722090895412,5.3702,186.21,186.18,45.0]
[1722090895612,5.37,186.22,186.18,45.0]
[1722090895807,5.37,186.22,186.17,45.0]
[1722090896028,5.3703,186.21,186.17,45.0]
[1722090896207,5.3703,186.21,186.16,45.0]
[1722090896534,5.3699,186.23,186.16,45.0]
[1722090896712,5.3699,186.23,186.17,5.3712]
[1722090896913,5.3699,186.23,186.18,45.0]
[1722090897116,5.37,186.22,186.18,45.0]
[1722090897323,5.37,186.22,186.17,45.0]
[1722090897626,5.3702,186.21,186.17,45.0]
[1722090897833,5.37,186.22,186.17,45.0]
[1722090898125,5.3697,186.23,186.17,45.0]
[1722090898326,15.1625,186.24,186.17,45.0]
[1722090898534,15.1625,186.24,186.2,5.3704]
[1722090898724,15.1625,186.24,186.21,45.0]
[1722090899109,15.1625,186.24,186.2,45.0]
[1722090899930,5.3699,186.23,186.17,5.3713]
[1722090900144,15.1625,186.24,186.12,1.07393498]
[1722090900306,15.1625,186.24,186.13,0.34]
[1722090900510,20.5319,186.24,186.18,5.371]
[1722090900707,5.3699,186.23,186.17,5.5414]
[1722090900921,15.1625,186.24,186.17,5.3714]
[1722090901125,5.3699,186.23,186.17,5.3714]
[1722090901912,5.37,186.22,186.17,5.3714]
[1722090902243,15.1625,186.24,186.18,45.0]
[1722090902406,5.37,186.22,186.18,45.0]
[1722090902610,5.37,186.22,186.17,45.0]
[1722090902816,20.5321,186.24,186.17,50.3712]
[1722090903113,15.1625,186.24,186.17,45.0]
[1722090903309,15.1625,186.24,186.1,3.40672033]
[1722090903520,5.3717,186.16,186.1,5.3734]
[1722090903744,5.3717,186.16,186.1,5.3733]
[1722090903745,5.3718,186.16,186.1,5.3733]
[1722090904033,5.3723,186.14,186.08,5.374]
[1722090904510,1.07353351,186.18,185.93,20.0]
[1722090904511,16.6625,186.15,186.0,17.84060248]
[1722090904712,5.3734,186.1,186.04,5.3749]
[1722090904936,5.374,186.09,186.02,5.3755]
[1722090905114,5.3734,186.1,186.03,5.3753]
[1722090905430,5.3734,186.1,186.04,5.3751]
[1722090905630,5.3729,186.12,186.05,5.3746]
[1722090905809,6.6277,186.13,186.07,5.3742]
[1722090905810,12.0004,186.13,186.07,5.3742]
[1722090906015,6.6277,186.13,185.99,1.07492627]
[1722090906438,12.0003,186.13,186.06,5.3743]
[1722090906639,16.6625,186.15,186.0,1.0746823]
[1722090906830,16.6625,186.15,186.01,22.5814]
[1722090907145,5.3726,186.13,186.07,5.3742]
[1722090907337,5.3726,186.13,186.08,45.0]
[1722090907639,5.3729,186.12,186.08,45.0]
[1722090907841,1.07353351,186.14,185.96,3.47703316]
[1722090908138,5.3731,186.11,186.04,5.3749]
[1722090908539,5.3734,186.1,186.04,5.3749]
[1722090908842,1.07353351,186.14,185.96,26.05843316]
[1722090908843,5.3729,186.12,186.06,5.3745]
[1722090909413,16.6625,186.15,186.05,0.17]
[1722090909613,20.0,186.14,186.05,0.17]
[1722090909837,20.0,186.14,186.09,5.3737]
[1722090910247,20.0,186.14,186.05,0.17]
[1722090910541,21.07353351,186.14,186.05,0.17]
[1722090910743,5.3726,186.13,186.07,5.3743]
[1722090910914,5.3728,186.12,186.08,45.0]
[1722090911238,5.3728,186.12,186.06,5.3745]
[1722090911239,5.3728,186.12,186.07,45.0]
[1722090911436,5.3726,186.13,186.07,50.3743]
[1722090911737,21.07353351,186.12,185.91,160.09222044]
[1722090912049,5.374,186.09,186.03,5.3752]
[1722090912429,5.3726,186.13,186.08,5.3739]
[1722090912633,20.0,186.14,186.08,5.3739]
[1722090913021,25.3724,186.14,185.97,17.24483158]
[1722090913241,20.0,186.14,186.04,5.3749]
[1722090913423,5.3735,186.1,185.97,17.24483158]
[1722090913625,16.6625,186.15,185.98,36.17]
[1722090913927,16.6625,186.15,186.07,5.3742]
[1722090914329,5.3732,186.11,186.05,5.3746]
[1722090914530,5.3735,186.1,185.99,1.07453913]
[1722090914734,5.3731,186.11,186.05,5.3748]
[1722090914941,1.07353351,186.14,186.06,50.3746]
[1722090914942,5.3728,186.12,186.06,50.3746]
[1722090916948,5.3728,186.12,186.06,5.3746]
[1722090917150,21.07353351,186.11,185.96,8.81371926]
[1722090917456,5.3741,186.08,186.01,5.3757]
[1722090917650,5.3743,186.07,186.02,5.3757]
[1722090917857,5.3741,186.08,186.02,5.3757]
[1722090918243,5.3743,186.07,186.02,5.3757]
[1722090918459,5.3749,186.05,185.92,8.813719]
[1722090918754,16.5722,186.06,185.93,1.07522094]
[1722090918930,21.9469,186.06,186.0,5.376]
[1722090919343,6.1789,186.08,185.95,1.0751905]
[1722090919656,6.1789,186.08,186.04,5.3751]
[1722090919837,6.1789,186.08,186.05,5.3748]
[1722090920159,6.1789,186.08,186.04,5.3751]
[1722090920654,6.1789,186.08,185.96,1.07496164]
[1722090920655,6.1789,186.14,186.05,45.17]
[1722090920865,6.1789,186.14,186.1,5.3734]
[1722090921034,6.1789,186.14,186.06,1.07467064]
[1722090921035,6.1789,186.14,186.09,5.3734]
[1722090921468,5.3732,186.11,186.06,0.17]
[1722090921633,5.3728,186.12,186.06,5.3743]
[1722090921834,5.3728,186.12,186.07,45.0]
[1722090922333,6.1789,186.14,186.07,45.0]
[1722090922766,16.5722,186.16,186.13,5.3725]
[1722090922963,6.1789,186.19,186.13,5.3725]
[1722090923130,16.5722,186.2,186.18,5.3711]
[1722090923337,11.5483,186.24,186.18,5.371]
[1722090923639,1.07353351,186.23,186.16,5.3716]
[1722090923962,6.1789,186.24,186.16,5.3716]
[1722090924134,5.3697,186.23,186.16,5.3716]
[1722090924778,5.37,186.22,186.16,5.3716]
[1722090925772,5.3708,186.2,186.14,5.3723]
[1722090926137,6.1789,186.24,186.1,1.07437882]
[1722090926365,5.3699,186.23,186.11,1.41427707]
[1722090926568,5.3705,186.2,186.14,5.3722]
[1722090926743,1.07353351,186.23,186.11,0.34]
[1722090926944,21.07353351,186.23,186.11,0.34]
[1722090927461,21.07353351,186.23,186.13,5.3725]
[1722090927462,5.3708,186.2,186.13,5.3725]
[1722090927664,20.0,186.23,186.14,45.0]
[1722090928052,5.3705,186.21,186.14,50.3722]
[1722090928243,5.3705,186.21,186.15,5.3719]
[1722090930451,1.07353351,186.22,186.17,5.3714]
[1722090930660,25.3699,186.23,186.17,5.3714]
[1722090930852,5.37,186.22,186.16,5.3717]
[1722090931045,25.3703,186.21,186.14,50.372]
[1722090931269,20.0,186.23,186.14,50.372]
[1722090931970,1.07353351,186.22,186.14,50.372]
[1722090932158,5.3706,186.2,186.14,50.372]
[1722090932344,5.3702,186.22,186.15,5.3719]
[1722090932542,20.0,186.21,186.16,45.0]
[1722090932740,20.0,186.23,186.14,45.0]
[1722090932968,5.3694,186.24,186.18,5.3709]
[1722090933153,17.3442348,186.25,186.19,5.3708]
[1722090933560,22.7133348,186.25,186.19,5.3708]
[1722090934349,0.7720348,186.25,186.2,45.0]
[1722090934572,0.7720348,186.25,186.18,0.17]
[1722090934759,0.7720348,186.25,186.22,5.3699]
[1722090935380,0.7720348,186.25,186.2,5.3703]
[1722090935555,1.84556831,186.25,186.15,20.0]
[1722090935754,0.7720348,186.25,186.16,45.34]
[1722090936062,0.7720348,186.25,186.19,5.3706]
[1722090936270,0.7720348,186.25,186.16,45.0]
[1722090936271,5.3697,186.23,186.16,45.0]
[1722090936476,6.1414348,186.25,186.18,5.371]
[1722090936784,5.3695,186.24,186.18,5.371]
[1722090937362,0.7720348,186.25,186.16,46.07410788]
[1722090937556,0.7720348,186.25,186.17,0.17]
[1722090937868,6.1411348,186.25,186.18,5.3708]
[1722090938066,6.1411348,186.25,186.19,5.3707]
[1722090938067,1.07353351,186.24,186.19,5.3707]
[1722090938258,0.7720348,186.25,186.2,45.0]
[1722090938577,0.7720348,186.25,186.22,5.3699]
[1722090938781,0.7720348,186.25,186.2,45.0]
[1722090939159,0.7720348,186.25,186.2,50.3705]
[1722090939676,6.1411348,186.25,186.2,45.0]
[1722090939877,1.07353351,186.24,186.17,5.3711]
[1722090940093,1.07353351,186.24,186.13,15.9955]
[1722090940094,1.07353351,186.24,186.16,5.3716]
[1722090940281,1.07353351,186.23,186.16,5.3716]
[1722090940651,1.84556831,186.25,186.13,15.9955]
[1722090940857,5.3696,186.24,186.18,5.3709]
[1722090941080,5.3697,186.23,186.17,5.3713]
[1722090941282,7.21496831,186.25,186.18,5.371]
[1722090941476,20.0,186.24,186.18,5.371]
[1722090941866,25.3695,186.24,186.18,5.371]
[1722090942464,25.3695,186.24,186.14,0.34]
[1722090942465,0.7720348,186.25,186.22,5.3699]
[1722090942676,0.7720348,186.25,186.19,45.0]
[1722090942887,0.7720348,186.25,186.2,5.3705]
[1722090943180,0.7720348,186.25,186.21,50.37]
[1722090943385,0.7720348,186.25,186.22,45.0]
[1722090943790,0.7720348,186.25,186.2,5.3705]
[1722090943978,0.7720348,186.25,186.21,50.3702]
[1722090944691,6.1412348,186.25,186.21,45.0]
[1722090944881,6.1412348,186.25,186.2,45.0]
[1722090945476,5.3694,186.24,186.2,45.0]
[1722090945684,0.7720348,186.25,186.2,45.0]
[1722090945882,0.7720348,186.25,186.2,50.3705]
[1722090946064,0.7720348,186.25,186.17,0.17]
[1722090946280,0.7720348,186.25,186.19,5.3707]
[1722090946281,6.1413348,186.25,186.19,5.3707]
[1722090946584,0.7720348,186.25,186.17,5.5413]
[1722090946787,0.7720348,186.25,186.18,50.3711]
[1722090946991,5.3696,186.24,186.18,50.3711]
[1722090947170,5.3697,186.23,186.18,50.3711]
[1722090947697,5.3697,186.23,186.18,45.0]
[1722090948002,6.1413348,186.25,186.18,50.3711]
[1722090948172,20.0,186.24,186.18,50.3711]
[1722090948492,25.3695,186.24,186.18,50.3711]
[1722090948804,5.3698,186.23,186.14,0.17]
[1722090948976,5.3702,186.22,186.16,5.3716]
[1722090949173,5.3702,186.22,186.17,50.3713]
[1722090949379,25.3695,186.24,186.18,5.371]
[1722090949672,5.3697,186.23,186.16,5.3715]
[1722090949882,20.0,186.24,186.17,50.3713]
[1722090950090,0.7720348,186.25,186.21,5.37]
[1722090950586,0.7720348,186.25,186.22,5.3699]
[1722090951297,0.7720348,186.25,186.21,5.3702]
[1722090951591,0.7720348,186.25,186.2,5.3705]
[1722090951799,6.1411348,186.25,186.21,45.0]
[1722090951980,0.7720348,186.25,186.21,45.0]
[1722090952583,0.7720348,186.25,186.16,0.17]
[1722090952780,0.7720348,186.25,186.21,5.37]
[1722090952982,0.7720348,186.25,186.22,45.0]
[1722090953687,0.7720348,186.25,186.24,5.3694]
[1722090953899,0.7720348,186.25,186.24,50.3694]
[1722090954100,0.7720348,186.25,186.24,65.5931]
[1722090954274,20.7926,186.36,186.3,5.3676]
[1722090954696,1.07353351,186.35,186.24,60.5637]
[1722090954900,1.07353351,186.35,186.25,45.34]
[1722090954901,5.3668,186.33,186.25,45.34]
[1722090955209,15.4265,186.36,186.25,45.34]
[1722090955383,5.3667,186.34,186.25,45.34]
[1722090955573,5.3667,186.34,186.28,5.368]
[1722090955773,5.3667,186.34,186.29,45.0]
[1722090956095,1.07353351,186.35,186.29,50.3679]
[1722090956096,6.43983351,186.35,186.29,50.3679]
[1722090956284,5.3665,186.34,186.29,45.0]
[1722090956486,6.44033351,186.33,186.27,5.3685]
[1722090956793,6.44033351,186.33,186.28,45.0]
[1722090956984,5.3668,186.33,186.28,45.0]
[1722090957168,1.07353351,186.35,186.28,45.0]
[1722090957369,21.07353351,186.35,186.28,45.0]
[1722090957776,26.43983351,186.35,186.29,5.3679]
[1722090958007,25.3663,186.35,186.3,45.0]
[1722090958193,25.3663,186.35,186.29,5.3679]
[1722090958372,5.367,186.33,186.25,0.17]
[1722090958582,20.0,186.35,186.25,45.0]
[1722090958785,5.3679,186.3,186.25,45.0]
[1722090959089,5.3673,186.32,186.25,50.3689]
[1722090959291,5.3673,186.31,186.25,50.3689]
[1722090959532,5.367,186.33,186.25,45.0]
[1722090959803,5.3674,186.31,186.26,5.3687]
[1722090960011,5.3674,186.31,186.25,45.0]
[1722090960178,34.48973351,186.35,186.25,45.0]
[1722090960383,34.48973351,186.35,186.19,18.65450959]
[1722090960384,5.3677,186.3,186.19,18.65450959]
[1722090960585,5.368,186.29,186.2,20.0]
[1722090960780,6.2815,186.32,186.23,5.3694]
[1722090961012,1.07353351,186.31,186.19,15.2237]
[1722090961188,5.3679,186.29,186.23,5.3695]
[1722090961388,5.3679,186.3,186.24,5.3692]
[1722090961614,1.07353351,186.29,186.14,15.2237]
[1722090961796,15.4265,186.28,186.14,15.2237]
[1722090962106,15.4265,186.28,186.18,5.3711]
[1722090962341,5.37,186.22,186.17,5.3714]
[1722090962484,1.07353351,186.26,186.14,15.2237]
[1722090962685,5.3707,186.2,186.09,15.2237]
[1722090962884,1.07353351,186.24,186.09,15.2237]
[1722090963086,5.3706,186.2,186.09,15.2237]
[1722090963590,5.3703,186.21,186.15,5.372]
[1722090964508,12.72493351,186.23,186.16,5.3717]
[1722090964715,6.2815,186.23,186.09,16.29802629]
[1722090964888,6.2815,186.23,186.19,5.3708]
[1722090965219,6.2815,186.23,186.11,1.0741528]
[1722090965389,6.2815,186.23,186.12,0.34]
[1722090965591,6.2815,186.23,186.19,5.3707]
[1722090965803,6.2815,186.23,186.12,0.34]
[1722090966131,6.2815,186.23,186.13,1.07417751]
[1722090966298,21.07353351,186.27,186.19,5.3708]
[1722090966492,1.07353351,186.26,186.19,5.3708]
[1722090966692,1.07353351,186.26,186.18,5.3711]
[1722090966998,1.07353351,186.25,186.18,5.3711]
[1722090967202,21.07353351,186.27,186.18,5.3711]
[1722090967401,5.3697,186.23,186.17,5.3714]
[1722090967602,5.3693,186.25,186.18,5.3709]
[1722090967920,21.07353351,186.24,186.1,1.07415289]
[1722090968233,5.3712,186.18,186.12,5.3728]
[1722090968527,5.3714,186.17,186.11,5.3731]
[1722090968729,5.3714,186.17,186.1,5.3733]
[1722090969017,1.07353351,186.17,186.08,5.3737]
[1722090969515,1.07353351,186.17,186.07,5.3742]
[1722090969698,1.07353351,186.17,186.08,5.374]
[1722090969699,5.3726,186.13,186.08,5.374]
[1722090970101,5.3726,186.13,186.04,22.7121]
[1722090970102,20.0,186.18,186.05,1.07469842]
[1722090970405,5.3724,186.14,186.07,5.374]
[1722090970597,5.3726,186.13,186.07,5.374]